[Event "Titled Tuesday Blitz February 07 Early 2023"]
[White "EREBUNI91"]
[Black "Borges Feria, Yasel"]
[BlackFideId "3504921"]
[WhiteElo "2666"]
[BlackElo "2439"]
[Result "1/2-1/2"]
[Round "08"]
[TimeControl "180+2"]
[Date "2023.02.07"]
[WhiteClock "0:00:06"]
[BlackClock "0:00:04"]

1. e4 {[%clk 0:03:00]}  e5 {[%clk 0:02:58]} 2. Nf3 {[%clk 0:03:01]}  Nc6 {[%clk 0:02:58]} 3. Bb5 {[%clk 0:03:00]}  a6 {[%clk 0:02:58]} 4. Ba4 {[%clk 0:02:59]}  Nf6 {[%clk 0:02:58]} 5. O-O {[%clk 0:02:57]}  Be7 {[%clk 0:02:59]} 6. Bxc6 {[%clk 0:02:53]}  dxc6 {[%clk 0:02:56]} 7. d3 {[%clk 0:02:53]}  Nd7 {[%clk 0:02:47]} 8. Nbd2 {[%clk 0:02:44]}  O-O {[%clk 0:02:45]} 9. Nc4 {[%clk 0:02:41]}  f6 {[%clk 0:02:30]} 10. Nh4 {[%clk 0:02:41]}  Nc5 {[%clk 0:02:25]} 11. Nf5 {[%clk 0:02:36]}  Ne6 {[%clk 0:01:40]} 12. Be3 {[%clk 0:02:31]}  Kh8 {[%clk 0:01:34]} 13. Qg4 {[%clk 0:02:20]}  Re8 {[%clk 0:01:13]} 14. Rad1 {[%clk 0:02:04]}  Bf8 {[%clk 0:01:12]} 15. Qg3 {[%clk 0:01:43]}  c5 {[%clk 0:01:10]} 16. h4 {[%clk 0:01:38]}  Nd4 {[%clk 0:01:03]} 17. Bxd4 {[%clk 0:01:32]}  cxd4 {[%clk 0:01:04]} 18. h5 {[%clk 0:01:31]}  Be6 {[%clk 0:01:02]} 19. b3 {[%clk 0:01:27]}  b5 {[%clk 0:01:01]} 20. Nd2 {[%clk 0:01:24]}  Qd7 {[%clk 0:00:59]} 21. Qg4 {[%clk 0:01:22]}  Qf7 {[%clk 0:00:57]} 22. f4 {[%clk 0:01:06]}  g6 {[%clk 0:00:54]} 23. hxg6 {[%clk 0:01:03]}  hxg6 {[%clk 0:00:55]} 24. Rf3 {[%clk 0:00:51]}  Kg8 {[%clk 0:00:52]} 25. fxe5 {[%clk 0:00:44]}  Bxf5 {[%clk 0:00:47]} 26. exf5 {[%clk 0:00:41]}  Rxe5 {[%clk 0:00:47]} 27. fxg6 {[%clk 0:00:40]}  Qe6 {[%clk 0:00:44]} 28. Qh4 {[%clk 0:00:37]}  Bg7 {[%clk 0:00:38]} 29. Ne4 {[%clk 0:00:33]}  f5 {[%clk 0:00:35]} 30. Qh7+ {[%clk 0:00:30]}  Kf8 {[%clk 0:00:35]} 31. Rdf1 {[%clk 0:00:30]}  Ra7 {[%clk 0:00:18]} 32. g4 {[%clk 0:00:27]}  c5 {[%clk 0:00:18]} 33. Rxf5+ {[%clk 0:00:26]}  Rxf5 {[%clk 0:00:17]} 34. Rxf5+ {[%clk 0:00:27]}  Ke8 {[%clk 0:00:17]} 35. Rf7 {[%clk 0:00:24]}  Qxg4+ {[%clk 0:00:17]} 36. Kf2 {[%clk 0:00:16]}  Rxf7+ {[%clk 0:00:17]} 37. gxf7+ {[%clk 0:00:16]}  Kxf7 {[%clk 0:00:17]} 38. Nd6+ {[%clk 0:00:16]}  Ke6 {[%clk 0:00:14]} 39. Qe4+ {[%clk 0:00:15]}  Qxe4 {[%clk 0:00:14]} 40. Nxe4 {[%clk 0:00:16]}  Bf8 {[%clk 0:00:14]} 41. Kf3 {[%clk 0:00:16]}  Ke5 {[%clk 0:00:14]} 42. Kg4 {[%clk 0:00:17]}  Be7 {[%clk 0:00:14]} 43. Kf3 {[%clk 0:00:14]}  Kf5 {[%clk 0:00:13]} 44. Nf2 {[%clk 0:00:12]}  Ke5 {[%clk 0:00:14]} 45. Ne4 {[%clk 0:00:13]}  Kf5 {[%clk 0:00:14]} 46. Nf2 {[%clk 0:00:13]}  Ke5 {[%clk 0:00:14]} 47. Kg4 {[%clk 0:00:11]}  Bd8 {[%clk 0:00:10]} 48. Ne4 {[%clk 0:00:11]}  Be7 {[%clk 0:00:10]} 49. Ng3 {[%clk 0:00:10]}  Bd8 {[%clk 0:00:07]} 50. Ne2 {[%clk 0:00:11]}  Be7 {[%clk 0:00:07]} 51. Nf4 {[%clk 0:00:08]}  Bd8 {[%clk 0:00:07]} 52. Kf3 {[%clk 0:00:05]}  Bg5 {[%clk 0:00:04]} 53. Ne2 {[%clk 0:00:05]}  Bd2 {[%clk 0:00:03]} 54. Ng3 {[%clk 0:00:05]}  Bh6 {[%clk 0:00:03]} 55. Ne4 {[%clk 0:00:06]}  Bf8 {[%clk 0:00:04]} 56. Kg4 {[%clk 0:00:06]}  Be7 {[%clk 0:00:04]} 1/2-1/2


[Site "https://www.chess.com"]

[Event "Titled Tuesday Blitz February 07 Early 2023"]
[White "Vaishali, Rameshbabu"]
[Black "Seemann, Jakub"]
[WhiteFideId "5091756"]
[BlackFideId "21874697"]
[WhiteElo "2418"]
[BlackElo "2446"]
[Result "1-0"]
[Round "08"]
[TimeControl "180+2"]
[Date "2023.02.07"]
[WhiteClock "0:00:20"]
[BlackClock "0:00:12"]

1. d4 {[%clk 0:02:53]}  Nf6 {[%clk 0:02:59]} 2. c4 {[%clk 0:02:52]}  d6 {[%clk 0:02:59]} 3. Nc3 {[%clk 0:02:51]}  e5 {[%clk 0:02:59]} 4. Nf3 {[%clk 0:02:48]}  e4 {[%clk 0:02:58]} 5. Nd2 {[%clk 0:02:45]}  Bf5 {[%clk 0:02:59]} 6. e3 {[%clk 0:02:42]}  Nc6 {[%clk 0:02:44]} 7. Be2 {[%clk 0:02:37]}  Be7 {[%clk 0:02:42]} 8. g4 {[%clk 0:02:31]}  Bg6 {[%clk 0:02:39]} 9. g5 {[%clk 0:02:29]}  Nd7 {[%clk 0:02:39]} 10. Ndxe4 {[%clk 0:02:27]}  Bxg5 {[%clk 0:02:34]} 11. h4 {[%clk 0:02:22]}  Be7 {[%clk 0:02:34]} 12. h5 {[%clk 0:02:21]}  Bxe4 {[%clk 0:02:30]} 13. Nxe4 {[%clk 0:02:22]}  Nf6 {[%clk 0:02:30]} 14. Ng3 {[%clk 0:02:01]}  O-O {[%clk 0:02:02]} 15. Rg1 {[%clk 0:01:54]}  Re8 {[%clk 0:01:59]} 16. Bd2 {[%clk 0:01:45]}  Bf8 {[%clk 0:01:57]} 17. Qc2 {[%clk 0:01:45]}  d5 {[%clk 0:01:57]} 18. O-O-O {[%clk 0:01:40]}  Nb4 {[%clk 0:01:53]} 19. Bxb4 {[%clk 0:01:33]}  Bxb4 {[%clk 0:01:52]} 20. Nf5 {[%clk 0:01:30]}  g6 {[%clk 0:01:49]} 21. hxg6 {[%clk 0:01:30]}  fxg6 {[%clk 0:01:42]} 22. cxd5 {[%clk 0:01:23]}  Kh8 {[%clk 0:01:31]} 23. Nh4 {[%clk 0:01:08]}  Qe7 {[%clk 0:00:31]} 24. Rxg6 {[%clk 0:00:39]}  Rg8 {[%clk 0:00:31]} 25. Rh1 {[%clk 0:00:37]}  Qf7 {[%clk 0:00:22]} 26. Rh6 {[%clk 0:00:28]}  Bf8 {[%clk 0:00:17]} 27. Ng6+ {[%clk 0:00:23]}  Rxg6 {[%clk 0:00:17]} 28. Qxg6 {[%clk 0:00:22]}  Qe7 {[%clk 0:00:12]} 29. Qxf6+ {[%clk 0:00:20]} 1-0


[Site "https://www.chess.com"]

[Event "Titled Tuesday Blitz February 07 Early 2023"]
[White "Harshavardhan G B"]
[Black "Iskusnyh, Sergei"]
[WhiteFideId "25059009"]
[BlackFideId "4120027"]
[WhiteElo "2408"]
[BlackElo "2440"]
[Result "1-0"]
[Round "08"]
[TimeControl "180+2"]
[Date "2023.02.07"]
[WhiteClock "0:00:25"]
[BlackClock "0:00:01"]

1. d4 {[%clk 0:02:50]}  d5 {[%clk 0:02:59]} 2. c4 {[%clk 0:02:45]}  c6 {[%clk 0:02:58]} 3. Nf3 {[%clk 0:02:44]}  Nf6 {[%clk 0:02:58]} 4. Nc3 {[%clk 0:02:43]}  dxc4 {[%clk 0:02:58]} 5. a4 {[%clk 0:02:42]}  e6 {[%clk 0:02:55]} 6. e4 {[%clk 0:02:40]}  Bb4 {[%clk 0:02:49]} 7. e5 {[%clk 0:02:39]}  Nd5 {[%clk 0:02:47]} 8. Bd2 {[%clk 0:02:39]}  b5 {[%clk 0:02:46]} 9. axb5 {[%clk 0:02:37]}  Bxc3 {[%clk 0:02:43]} 10. bxc3 {[%clk 0:02:38]}  cxb5 {[%clk 0:02:43]} 11. Ng5 {[%clk 0:02:38]}  Bb7 {[%clk 0:02:40]} 12. Qh5 {[%clk 0:02:36]}  Qe7 {[%clk 0:02:37]} 13. Be2 {[%clk 0:02:30]}  Nd7 {[%clk 0:02:34]} 14. Bf3 {[%clk 0:02:27]}  a5 {[%clk 0:02:30]} 15. O-O {[%clk 0:02:20]}  Bc6 {[%clk 0:02:25]} 16. h4 {[%clk 0:02:10]}  N7b6 {[%clk 0:01:44]} 17. Ne4 {[%clk 0:01:55]}  O-O {[%clk 0:01:33]} 18. Rae1 {[%clk 0:01:41]}  b4 {[%clk 0:01:00]} 19. Bg5 {[%clk 0:01:39]}  f6 {[%clk 0:00:55]} 20. exf6 {[%clk 0:01:37]}  gxf6 {[%clk 0:00:54]} 21. Bh6 {[%clk 0:01:37]}  Rfe8 {[%clk 0:00:44]} 22. Nc5 {[%clk 0:01:33]}  e5 {[%clk 0:00:27]} 23. dxe5 {[%clk 0:01:24]}  fxe5 {[%clk 0:00:21]} 24. Qg4+ {[%clk 0:01:20]}  Kh8 {[%clk 0:00:17]} 25. Ne6 {[%clk 0:01:16]}  Rg8 {[%clk 0:00:16]} 26. Qf5 {[%clk 0:01:15]}  Nd7 {[%clk 0:00:10]} 27. Ng5 {[%clk 0:01:04]}  Raf8 {[%clk 0:00:09]} 28. Bxf8 {[%clk 0:01:03]}  Rxf8 {[%clk 0:00:09]} 29. Qg4 {[%clk 0:00:50]}  b3 {[%clk 0:00:07]} 30. Be4 {[%clk 0:00:46]}  N7f6 {[%clk 0:00:05]} 31. Qf5 {[%clk 0:00:34]}  Nxe4 {[%clk 0:00:05]} 32. Qxe4 {[%clk 0:00:35]}  Ba8 {[%clk 0:00:02]} 33. Qxc4 {[%clk 0:00:33]}  b2 {[%clk 0:00:01]} 34. Qb5 {[%clk 0:00:26]}  Nf4 {[%clk 0:00:01]} 35. f3 {[%clk 0:00:25]} 1-0


[Site "https://www.chess.com"]

[Event "Titled Tuesday Blitz February 07 Early 2023"]
[White "Nguyen, Quoc Hy"]
[Black "Djokovic, Nebojsa"]
[WhiteFideId "12410853"]
[BlackFideId "938300"]
[WhiteElo "2352"]
[BlackElo "2119"]
[Result "1-0"]
[Round "08"]
[TimeControl "180+2"]
[Date "2023.02.07"]
[WhiteClock "0:01:15"]
[BlackClock "0:01:30"]

1. e4 {[%clk 0:02:54]}  e6 {[%clk 0:03:00]} 2. d4 {[%clk 0:02:54]}  d5 {[%clk 0:03:00]} 3. Nc3 {[%clk 0:02:53]}  Nf6 {[%clk 0:03:01]} 4. exd5 {[%clk 0:02:49]}  exd5 {[%clk 0:03:00]} 5. Bd3 {[%clk 0:02:49]}  Bd6 {[%clk 0:02:59]} 6. Bg5 {[%clk 0:02:45]}  c6 {[%clk 0:02:59]} 7. Qd2 {[%clk 0:02:32]}  Nbd7 {[%clk 0:02:56]} 8. O-O-O {[%clk 0:02:31]}  O-O {[%clk 0:02:56]} 9. Nf3 {[%clk 0:02:26]}  b5 {[%clk 0:02:56]} 10. Rde1 {[%clk 0:02:25]}  Qc7 {[%clk 0:02:56]} 11. Ne2 {[%clk 0:02:22]}  Ne4 {[%clk 0:02:54]} 12. Bxe4 {[%clk 0:02:17]}  dxe4 {[%clk 0:02:54]} 13. Nh4 {[%clk 0:02:17]}  Nb6 {[%clk 0:02:48]} 14. Ng3 {[%clk 0:02:15]}  f6 {[%clk 0:02:42]} 15. Be3 {[%clk 0:02:08]}  f5 {[%clk 0:02:42]} 16. Bg5 {[%clk 0:01:46]}  h6 {[%clk 0:02:33]} 17. Bxh6 {[%clk 0:01:45]}  gxh6 {[%clk 0:02:33]} 18. Ng6 {[%clk 0:01:43]}  Kg7 {[%clk 0:01:54]} 19. Nxf8 {[%clk 0:01:38]}  Bf4 {[%clk 0:01:54]} 20. Nh5+ {[%clk 0:01:36]}  Kxf8 {[%clk 0:01:50]} 21. Qxf4 {[%clk 0:01:35]}  Qxf4+ {[%clk 0:01:50]} 22. Nxf4 {[%clk 0:01:36]}  Bd7 {[%clk 0:01:46]} 23. f3 {[%clk 0:01:34]}  exf3 {[%clk 0:01:45]} 24. gxf3 {[%clk 0:01:35]}  Kf7 {[%clk 0:01:46]} 25. Rhg1 {[%clk 0:01:32]}  Rd8 {[%clk 0:01:41]} 26. Nh5 {[%clk 0:01:31]}  Be8 {[%clk 0:01:39]} 27. Rg7+ {[%clk 0:01:26]}  Kf8 {[%clk 0:01:39]} 28. Rh7 {[%clk 0:01:26]}  Kg8 {[%clk 0:01:34]} 29. Nf6+ {[%clk 0:01:21]}  Kf8 {[%clk 0:01:35]} 30. Rh8+ {[%clk 0:01:18]}  Kg7 {[%clk 0:01:33]} 31. Rhxe8 {[%clk 0:01:18]}  Rxd4 {[%clk 0:01:33]} 32. Nh5+ {[%clk 0:01:18]}  Kg6 {[%clk 0:01:33]} 33. Ng3 {[%clk 0:01:19]}  Nc4 {[%clk 0:01:33]} 34. R8e6+ {[%clk 0:01:16]}  Kf7 {[%clk 0:01:33]} 35. Nxf5 {[%clk 0:01:16]}  Rf4 {[%clk 0:01:34]} 36. Nxh6+ {[%clk 0:01:15]}  Kg7 {[%clk 0:01:34]} 37. Rg1+ {[%clk 0:01:15]}  Kh7 {[%clk 0:01:35]} 38. Ng4 {[%clk 0:01:14]}  Rxf3 {[%clk 0:01:34]} 39. Nf6+ {[%clk 0:01:14]}  Kh6 {[%clk 0:01:33]} 40. Ng8+ {[%clk 0:01:14]}  Kh5 {[%clk 0:01:30]} 41. Rh6# {[%clk 0:01:15]} 1-0


[Site "https://www.chess.com"]

[Event "Titled Tuesday Blitz February 07 Early 2023"]
[White "Moksh Amit Doshi"]
[Black "Md, Imran"]
[WhiteFideId "25064967"]
[BlackFideId "25748580"]
[WhiteElo "2401"]
[BlackElo "2284"]
[Result "1-0"]
[Round "08"]
[TimeControl "180+2"]
[Date "2023.02.07"]
[WhiteClock "0:00:49"]
[BlackClock "0:01:08"]

1. c4 {[%clk 0:02:53]}  e6 {[%clk 0:02:58]} 2. g3 {[%clk 0:02:46]}  h5 {[%clk 0:02:57]} 3. Nf3 {[%clk 0:02:38]}  Be7 {[%clk 0:02:53]} 4. Nc3 {[%clk 0:02:29]}  Nf6 {[%clk 0:02:49]} 5. d4 {[%clk 0:02:29]}  d5 {[%clk 0:02:45]} 6. Bg2 {[%clk 0:02:28]}  dxc4 {[%clk 0:02:43]} 7. Ne5 {[%clk 0:02:28]}  Nd5 {[%clk 0:02:40]} 8. Nxc4 {[%clk 0:02:26]}  Nc6 {[%clk 0:02:38]} 9. e4 {[%clk 0:02:25]}  Nb6 {[%clk 0:02:36]} 10. Nxb6 {[%clk 0:02:23]}  axb6 {[%clk 0:02:35]} 11. Be3 {[%clk 0:02:24]}  h4 {[%clk 0:02:33]} 12. Qd2 {[%clk 0:02:21]}  hxg3 {[%clk 0:02:29]} 13. hxg3 {[%clk 0:02:21]}  Rxh1+ {[%clk 0:02:28]} 14. Bxh1 {[%clk 0:02:22]}  Na5 {[%clk 0:02:21]} 15. Qe2 {[%clk 0:02:19]}  Bd7 {[%clk 0:02:17]} 16. Rd1 {[%clk 0:02:04]}  Bb4 {[%clk 0:02:12]} 17. Qg4 {[%clk 0:01:52]}  Qf6 {[%clk 0:02:10]} 18. e5 {[%clk 0:01:51]}  Qe7 {[%clk 0:02:06]} 19. Qxg7 {[%clk 0:01:43]}  Nc4 {[%clk 0:02:02]} 20. Kf1 {[%clk 0:01:33]}  Nxe3+ {[%clk 0:01:58]} 21. fxe3 {[%clk 0:01:33]}  O-O-O {[%clk 0:01:58]} 22. Ne4 {[%clk 0:01:28]}  Bb5+ {[%clk 0:01:55]} 23. Kf2 {[%clk 0:01:27]}  Ba5 {[%clk 0:01:45]} 24. a3 {[%clk 0:01:27]}  Ba4 {[%clk 0:01:43]} 25. Rc1 {[%clk 0:01:26]}  Bc6 {[%clk 0:01:41]} 26. b4 {[%clk 0:01:22]}  Bxb4 {[%clk 0:01:40]} 27. axb4 {[%clk 0:01:23]}  Qxb4 {[%clk 0:01:39]} 28. Re1 {[%clk 0:01:20]}  Qb2+ {[%clk 0:01:31]} 29. Re2 {[%clk 0:01:20]}  Qb1 {[%clk 0:01:31]} 30. Qh7 {[%clk 0:01:02]}  Kb8 {[%clk 0:01:29]} 31. Bf3 {[%clk 0:01:00]}  b5 {[%clk 0:01:26]} 32. Ng5 {[%clk 0:00:56]}  Qxh7 {[%clk 0:01:16]} 33. Nxh7 {[%clk 0:00:57]}  Rh8 {[%clk 0:01:16]} 34. Bxc6 {[%clk 0:00:57]}  bxc6 {[%clk 0:01:14]} 35. Ng5 {[%clk 0:00:58]}  c5 {[%clk 0:01:13]} 36. dxc5 {[%clk 0:00:56]}  Rh5 {[%clk 0:01:10]} 37. Nf3 {[%clk 0:00:53]}  Rh8 {[%clk 0:01:10]} 38. Rb2 {[%clk 0:00:53]}  c6 {[%clk 0:01:08]} 39. Ke2 {[%clk 0:00:49]} 1-0


[Site "https://www.chess.com"]

[Event "Titled Tuesday Blitz February 07 Early 2023"]
[White "Papasimakopoulos, Alexandros"]
[Black "Bagwe Gaurang"]
[WhiteFideId "4244125"]
[BlackFideId "45039895"]
[WhiteElo "2401"]
[BlackElo "2067"]
[Result "0-1"]
[Round "08"]
[TimeControl "180+2"]
[Date "2023.02.07"]
[WhiteClock "0:00:22"]
[BlackClock "0:01:11"]

1. d4 {[%clk 0:03:00]}  d5 {[%clk 0:03:00]} 2. c4 {[%clk 0:03:01]}  e6 {[%clk 0:03:00]} 3. Nc3 {[%clk 0:03:01]}  Nf6 {[%clk 0:03:00]} 4. cxd5 {[%clk 0:03:01]}  Nxd5 {[%clk 0:03:01]} 5. e4 {[%clk 0:03:01]}  Nxc3 {[%clk 0:03:01]} 6. bxc3 {[%clk 0:03:02]}  c5 {[%clk 0:03:02]} 7. Rb1 {[%clk 0:03:01]}  b6 {[%clk 0:02:37]} 8. Bb5+ {[%clk 0:02:59]}  Bd7 {[%clk 0:02:37]} 9. Bd3 {[%clk 0:02:59]}  Be7 {[%clk 0:02:34]} 10. Nf3 {[%clk 0:02:58]}  O-O {[%clk 0:02:34]} 11. O-O {[%clk 0:02:58]}  Nc6 {[%clk 0:02:34]} 12. d5 {[%clk 0:02:56]}  Na5 {[%clk 0:02:26]} 13. c4 {[%clk 0:02:54]}  exd5 {[%clk 0:02:23]} 14. cxd5 {[%clk 0:02:34]}  c4 {[%clk 0:02:23]} 15. Bc2 {[%clk 0:02:34]}  Rc8 {[%clk 0:02:22]} 16. Nd4 {[%clk 0:02:27]}  Bf6 {[%clk 0:02:11]} 17. f4 {[%clk 0:02:24]}  g6 {[%clk 0:02:05]} 18. e5 {[%clk 0:02:22]}  Bg7 {[%clk 0:02:05]} 19. Be3 {[%clk 0:02:18]}  Re8 {[%clk 0:02:04]} 20. Bf2 {[%clk 0:02:12]}  c3 {[%clk 0:02:01]} 21. Re1 {[%clk 0:02:05]}  Nc4 {[%clk 0:02:01]} 22. e6 {[%clk 0:01:55]}  Bxd4 {[%clk 0:01:30]} 23. Qxd4 {[%clk 0:01:44]}  fxe6 {[%clk 0:01:29]} 24. dxe6 {[%clk 0:01:36]}  Bxe6 {[%clk 0:01:27]} 25. Qxc3 {[%clk 0:01:11]}  Nd2 {[%clk 0:01:20]} 26. Qe5 {[%clk 0:01:09]}  Bf7 {[%clk 0:01:17]} 27. Qb2 {[%clk 0:00:41]}  Nxb1 {[%clk 0:01:16]} 28. Rxb1 {[%clk 0:00:40]}  Re2 {[%clk 0:01:11]} 29. Rc1 {[%clk 0:00:24]}  Rexc2 {[%clk 0:01:11]} 30. Rxc2 {[%clk 0:00:22]}  Qd1+ {[%clk 0:01:11]} 31. Be1 {[%clk 0:00:22]}  Qxe1# {[%clk 0:01:11]} 0-1


[Site "https://www.chess.com"]

[Event "Titled Tuesday Blitz February 07 Early 2023"]
[White "Akobian, Varuzhan"]
[Black "Defend, Balint"]
[WhiteFideId "13300580"]
[BlackFideId "17004853"]
[WhiteElo "2591"]
[BlackElo "1673"]
[Result "0-1"]
[Round "08"]
[TimeControl "180+2"]
[Date "2023.02.07"]
[WhiteClock "0:00:02"]
[BlackClock "0:00:44"]

1. d4 {[%clk 0:03:00]}  Nf6 {[%clk 0:02:59]} 2. c4 {[%clk 0:03:00]}  e6 {[%clk 0:02:59]} 3. Nf3 {[%clk 0:02:58]}  b6 {[%clk 0:02:59]} 4. g3 {[%clk 0:02:55]}  Bb7 {[%clk 0:02:59]} 5. Bg2 {[%clk 0:02:54]}  Be7 {[%clk 0:02:58]} 6. O-O {[%clk 0:02:54]}  O-O {[%clk 0:02:59]} 7. Nc3 {[%clk 0:02:54]}  Ne4 {[%clk 0:02:59]} 8. Bd2 {[%clk 0:02:52]}  d5 {[%clk 0:03:00]} 9. cxd5 {[%clk 0:02:51]}  exd5 {[%clk 0:03:01]} 10. Rc1 {[%clk 0:02:45]}  Nd7 {[%clk 0:03:00]} 11. Bf4 {[%clk 0:02:43]}  Nxc3 {[%clk 0:03:00]} 12. Rxc3 {[%clk 0:02:42]}  c5 {[%clk 0:03:00]} 13. dxc5 {[%clk 0:02:09]}  bxc5 {[%clk 0:03:01]} 14. b3 {[%clk 0:01:58]}  a5 {[%clk 0:02:58]} 15. Ne5 {[%clk 0:01:52]}  Nxe5 {[%clk 0:02:52]} 16. Bxe5 {[%clk 0:01:51]}  Qd7 {[%clk 0:02:52]} 17. Rd3 {[%clk 0:01:47]}  d4 {[%clk 0:02:25]} 18. Bxb7 {[%clk 0:01:36]}  Qxb7 {[%clk 0:02:26]} 19. Bf4 {[%clk 0:01:32]}  Rfc8 {[%clk 0:02:18]} 20. Qc2 {[%clk 0:01:27]}  a4 {[%clk 0:02:09]} 21. Bd2 {[%clk 0:01:13]}  Qb5 {[%clk 0:01:55]} 22. Rc1 {[%clk 0:01:08]}  h6 {[%clk 0:01:50]} 23. e3 {[%clk 0:00:51]}  axb3 {[%clk 0:01:44]} 24. axb3 {[%clk 0:00:46]}  Ra2 {[%clk 0:01:42]} 25. Qc4 {[%clk 0:00:46]}  Qxc4 {[%clk 0:01:10]} 26. Rxc4 {[%clk 0:00:45]}  Rb8 {[%clk 0:01:03]} 27. exd4 {[%clk 0:00:43]}  cxd4 {[%clk 0:01:04]} 28. b4 {[%clk 0:00:28]}  Rb2 {[%clk 0:01:02]} 29. Rdxd4 {[%clk 0:00:25]}  Bf6 {[%clk 0:01:00]} 30. Rd7 {[%clk 0:00:19]}  Rb5 {[%clk 0:00:58]} 31. Rc5 {[%clk 0:00:12]}  Rb6 {[%clk 0:00:50]} 32. h4 {[%clk 0:00:07]}  h5 {[%clk 0:00:50]} 33. Rxh5 {[%clk 0:00:04]}  Rb1+ {[%clk 0:00:47]} 34. Kg2 {[%clk 0:00:04]}  Rd1 {[%clk 0:00:47]} 35. Rc5 {[%clk 0:00:02]}  Rxb4 {[%clk 0:00:44]} 0-1


[Site "https://www.chess.com"]

[Event "Titled Tuesday Blitz February 07 Early 2023"]
[White "Sturt, Raven"]
[Black "Ibarra Jerez, Jose Carlos"]
[WhiteFideId "2007304"]
[BlackFideId "2226332"]
[WhiteElo "2470"]
[BlackElo "2563"]
[Result "0-1"]
[Round "08"]
[TimeControl "180+2"]
[Date "2023.02.07"]
[WhiteClock "0:01:49"]
[BlackClock "0:02:43"]

1. e4 {[%clk 0:03:00]}  c5 {[%clk 0:02:59]} 2. Nf3 {[%clk 0:03:01]}  e6 {[%clk 0:03:00]} 3. d4 {[%clk 0:03:01]}  cxd4 {[%clk 0:03:01]} 4. Nxd4 {[%clk 0:03:02]}  Bc5 {[%clk 0:03:01]} 5. Nb3 {[%clk 0:02:59]}  Bb6 {[%clk 0:03:02]} 6. Nc3 {[%clk 0:02:49]}  Ne7 {[%clk 0:03:01]} 7. Bd3 {[%clk 0:02:34]}  O-O {[%clk 0:03:01]} 8. Bg5 {[%clk 0:02:14]}  f6 {[%clk 0:03:01]} 9. Bf4 {[%clk 0:02:10]}  f5 {[%clk 0:03:01]} 10. Bd6 {[%clk 0:02:03]}  Bxf2+ {[%clk 0:02:59]} 11. Kxf2 {[%clk 0:02:00]}  fxe4+ {[%clk 0:02:59]} 12. Ke2 {[%clk 0:01:56]}  exd3+ {[%clk 0:02:58]} 13. Qxd3 {[%clk 0:01:57]}  b6 {[%clk 0:02:53]} 14. Qe4 {[%clk 0:01:50]}  Ba6+ {[%clk 0:02:51]} 15. Kd2 {[%clk 0:01:50]}  Nbc6 {[%clk 0:02:45]} 16. Raf1 {[%clk 0:01:48]}  Rxf1 {[%clk 0:02:42]} 17. Rxf1 {[%clk 0:01:49]}  Bxf1 {[%clk 0:02:43]} 0-1


[Site "https://www.chess.com"]

[Event "Titled Tuesday Blitz February 07 Early 2023"]
[White "Tristan, Leonardo"]
[Black "Kochetov, Andrey"]
[WhiteFideId "113816"]
[BlackFideId "24130532"]
[WhiteElo "2545"]
[BlackElo "2165"]
[Result "1-0"]
[Round "08"]
[TimeControl "180+2"]
[Date "2023.02.07"]
[WhiteClock "0:00:15"]
[BlackClock "0:00:01"]

1. d4 {[%clk 0:03:00]}  Nf6 {[%clk 0:02:51]} 2. Nf3 {[%clk 0:03:01]}  e6 {[%clk 0:02:51]} 3. Bf4 {[%clk 0:03:01]}  c5 {[%clk 0:02:51]} 4. e3 {[%clk 0:03:01]}  d5 {[%clk 0:02:51]} 5. Nbd2 {[%clk 0:03:01]}  Bd6 {[%clk 0:02:51]} 6. Bb5+ {[%clk 0:03:01]}  Nc6 {[%clk 0:02:46]} 7. Bg3 {[%clk 0:03:01]}  O-O {[%clk 0:02:42]} 8. c3 {[%clk 0:03:02]}  Qc7 {[%clk 0:02:42]} 9. dxc5 {[%clk 0:03:01]}  Bxg3 {[%clk 0:02:34]} 10. hxg3 {[%clk 0:03:02]}  a6 {[%clk 0:02:34]} 11. Bxc6 {[%clk 0:02:58]}  Qxc6 {[%clk 0:02:27]} 12. b4 {[%clk 0:02:58]}  b6 {[%clk 0:02:24]} 13. Nb3 {[%clk 0:02:43]}  Ne4 {[%clk 0:02:21]} 14. Qc2 {[%clk 0:02:37]}  h6 {[%clk 0:02:18]} 15. Ne5 {[%clk 0:02:27]}  Qc7 {[%clk 0:02:15]} 16. Nd3 {[%clk 0:02:27]}  Bd7 {[%clk 0:02:15]} 17. a4 {[%clk 0:02:25]}  e5 {[%clk 0:02:05]} 18. cxb6 {[%clk 0:02:22]}  Qxb6 {[%clk 0:02:05]} 19. Nxe5 {[%clk 0:02:22]}  Bf5 {[%clk 0:02:05]} 20. g4 {[%clk 0:02:06]}  Qf6 {[%clk 0:02:00]} 21. gxf5 {[%clk 0:02:04]}  Qxe5 {[%clk 0:01:59]} 22. Nd4 {[%clk 0:02:04]}  Rfc8 {[%clk 0:01:55]} 23. Ra3 {[%clk 0:02:03]}  Rab8 {[%clk 0:01:54]} 24. b5 {[%clk 0:02:00]}  Rc4 {[%clk 0:01:38]} 25. Nc6 {[%clk 0:01:48]}  Qd6 {[%clk 0:01:23]} 26. O-O {[%clk 0:01:40]}  Rxc6 {[%clk 0:01:07]} 27. bxc6 {[%clk 0:01:37]}  Qxa3 {[%clk 0:01:07]} 28. c4 {[%clk 0:01:38]}  Qc5 {[%clk 0:00:53]} 29. Rd1 {[%clk 0:01:32]}  Qxc6 {[%clk 0:00:30]} 30. Rxd5 {[%clk 0:01:29]}  Qc7 {[%clk 0:00:26]} 31. Qxe4 {[%clk 0:01:27]}  Rb4 {[%clk 0:00:21]} 32. Rd4 {[%clk 0:01:00]}  Rxa4 {[%clk 0:00:21]} 33. g3 {[%clk 0:01:00]}  Rb4 {[%clk 0:00:17]} 34. Qa8+ {[%clk 0:00:56]}  Kh7 {[%clk 0:00:16]} 35. Qxa6 {[%clk 0:00:56]}  Rb1+ {[%clk 0:00:15]} 36. Kg2 {[%clk 0:00:56]}  Qe5 {[%clk 0:00:15]} 37. Qc8 {[%clk 0:00:36]}  Rb2 {[%clk 0:00:12]} 38. Kf3 {[%clk 0:00:29]}  Qf6 {[%clk 0:00:06]} 39. Qd7 {[%clk 0:00:24]}  Rc2 {[%clk 0:00:04]} 40. Qd5 {[%clk 0:00:23]}  Qg5 {[%clk 0:00:04]} 41. Qe4 {[%clk 0:00:24]}  Qh5+ {[%clk 0:00:04]} 42. Kg2 {[%clk 0:00:19]}  Qe2 {[%clk 0:00:04]} 43. f6+ {[%clk 0:00:18]}  g6 {[%clk 0:00:03]} 44. Qf3 {[%clk 0:00:16]}  Qe1 {[%clk 0:00:02]} 45. Rd7 {[%clk 0:00:15]}  Kg8 {[%clk 0:00:01]} 46. Qa8+ {[%clk 0:00:15]}  Kh7 {[%clk 0:00:01]} 47. Rxf7# {[%clk 0:00:15]} 1-0


[Site "https://www.chess.com"]